bitfinex/quotes_SOLUSD_20240716
["timestamp","ask_amount","ask_price","bid_price","bid_amount"]
[1721141537301,21.4211,155.74,155.69,22.4798]
[1721141537983,15.0,155.74,155.7,6.4225]
[1721141538279,15.0,155.74,155.71,6.4221]
[1721141538865,0.34,155.73,155.71,6.4221]
[1721141539377,0.34,155.73,155.69,16.057]
[1721141539378,0.34,155.73,155.69,22.4798]
[1721141539698,0.34,155.73,155.66,48.1811]
[1721141539989,0.34,155.73,155.68,16.0577]
[1721141540350,0.34,155.73,155.7,6.4224]
[1721141540652,0.34,155.73,155.68,16.0577]
[1721141541071,0.34,155.73,155.71,6.4221]
[1721141541575,15.34,155.73,155.71,6.4221]
[1721141541798,15.34,155.73,155.7,22.4784]
[1721141543174,15.34,155.73,155.71,6.4221]
[1721141543370,15.34,155.73,155.7,16.056]
[1721141543662,0.34,155.73,155.7,16.056]
[1721141543862,0.17,155.72,155.67,16.0589]
[1721141544703,6.7618,155.72,155.67,22.4826]
[1721141545871,6.4222,155.71,155.67,16.0589]
[1721141546062,0.17,155.7,155.66,6.4241]
[1721141546258,0.34,155.7,155.66,6.4241]
[1721141546684,0.34,155.7,155.67,6.4238]
[1721141546890,0.17,155.69,155.67,6.4238]
[1721141547772,0.17,155.69,155.68,6.4234]
[1721141550085,15.0,155.76,155.68,15.7348]
[1721141550285,21.4202,155.76,155.72,6.4217]
[1721141550506,15.0,155.76,155.71,22.4775]
[1721141551093,21.4202,155.76,155.71,22.4775]
[1721141551514,6.5905,155.75,155.71,22.4775]
[1721141551815,15.17,155.74,155.7,6.4225]
[1721141551991,0.17,155.73,155.7,6.4225]
[1721141553013,0.17,155.73,155.71,6.422]
[1721141553397,0.17,155.73,155.7,22.4785]
[1721141553693,15.34,155.74,155.7,22.4785]
[1721141554016,15.34,155.74,155.71,7.70623908]
[1721141554613,15.0,155.76,155.7,16.056]
[1721141554814,21.4201,155.76,155.7,16.056]
[1721141555409,21.4201,155.76,155.71,6.4221]
[1721141555913,0.17,155.75,155.72,6.4217]
[1721141556149,0.34,155.75,155.73,6.4212]
[1721141556416,15.0,155.79,155.76,6.42]
[1721141556601,15.0,155.79,155.77,0.70749989]
[1721141556801,15.0,155.79,155.75,6.4202]
[1721141556989,15.0,155.79,155.74,16.052]
[1721141557390,21.4189,155.79,155.74,22.4726]
[1721141557697,21.4189,155.79,155.75,6.4205]
[1721141558107,21.4189,155.79,155.74,22.4728]
[1721141558309,15.0,155.77,155.71,16.0551]
[1721141558493,0.17,155.76,155.71,16.0551]
[1721141558690,0.17,155.75,155.69,45.0]
[1721141558903,0.17,155.75,155.74,6.4209]
[1721141560298,15.0,155.79,155.73,16.053]
[1721141561415,15.0,155.79,155.75,6.4204]
[1721141561600,0.17,155.78,155.73,16.053]
[1721141561802,6.7593,155.78,155.73,22.474]
[1721141562413,0.34,155.78,155.73,16.053]
[1721141562811,0.34,155.78,155.76,6.42]
[1721141563006,0.34,155.78,155.71,32.1102]
[1721141563210,0.34,155.78,155.76,6.42]
[1721141564133,15.0,155.79,155.75,16.0507]
[1721141564416,22.3159,155.85,155.77,22.4685]
[1721141564417,15.0,155.81,155.77,22.4685]
[1721141564594,21.4181,155.81,155.77,16.0489]
[1721141564801,6.4185,155.8,155.75,6.4204]
[1721141565307,15.17,155.79,155.75,6.4202]
[1721141565507,0.17,155.78,155.75,6.4202]
[1721141565825,0.17,155.78,155.74,16.0517]
[1721141566528,0.17,155.78,155.77,6.4197]
[1721141566894,0.17,155.78,155.75,6.4205]
[1721141567090,0.17,155.78,155.73,16.0529]
[1721141567091,0.17,155.78,155.74,6.4208]
[1721141567513,0.17,155.78,155.75,6.4204]
[1721141567716,0.17,155.78,155.77,6.4197]
[1721141568720,0.17,155.78,155.76,6.42]
[1721141568918,0.17,155.78,155.75,16.0508]
[1721141569226,15.0,155.77,155.72,61.0538]
[1721141569404,0.17,155.78,155.72,16.0538]
[1721141569405,0.17,155.76,155.72,16.0538]
[1721141569602,0.17,155.77,155.74,16.0513]
[1721141569793,0.17,155.78,155.74,16.0513]
[1721141570122,0.17,155.78,155.74,22.4721]
[1721141570313,0.34,155.78,155.75,6.4203]
[1721141570520,0.34,155.78,155.74,22.4721]
[1721141570904,0.34,155.78,155.74,16.0513]
[1721141571121,15.0,155.77,155.74,16.0513]
[1721141571303,0.34,155.76,155.74,16.0513]
[1721141571901,0.34,155.76,155.75,6.4204]
[1721141574013,0.34,155.76,155.75,1.28153915]
[1721141574213,0.34,155.76,155.75,7.70203915]
[1721141574735,0.34,155.76,155.75,6.4205]
[1721141575528,15.0,155.79,155.76,22.4695]
[1721141575730,0.34,155.78,155.76,22.4695]
[1721141576028,6.7593,155.78,155.73,16.0527]
[1721141576331,6.7593,155.78,155.73,22.4739]
[1721141576732,15.0,155.77,155.73,22.4739]
[1721141576919,0.34,155.76,155.73,22.4739]
[1721141577121,0.34,155.76,155.75,6.4205]
[1721141577328,0.34,155.76,155.74,6.4208]
[1721141577825,0.34,155.76,155.75,6.4205]
[1721141580432,15.0,155.79,155.75,16.0505]
[1721141580615,0.34,155.78,155.75,16.0505]
[1721141581134,0.34,155.78,155.76,6.42]
[1721141581625,0.34,155.78,155.74,6.4205]
[1721141582351,0.34,155.78,155.75,6.4204]
[1721141582830,0.34,155.78,155.74,16.0522]
[1721141583035,6.7595,155.78,155.74,16.0522]
[1721141583206,6.7595,155.78,155.74,22.4731]
[1721141583411,0.34,155.78,155.75,6.4204]
[1721141583821,0.34,155.78,155.74,22.473]
[1721141584308,6.7593,155.78,155.74,16.0522]
[1721141584512,0.34,155.78,155.74,31.9122]
[1721141584708,0.34,155.78,155.76,6.4198]
[1721141584909,0.34,155.78,155.77,6.4197]
[1721141585111,15.0,155.79,155.78,6.4193]
[1721141585306,28.39342085,155.85,155.8,6.4182]
[1721141585307,30.86,155.83,155.8,6.4182]
[1721141585537,43.094,155.85,155.8,6.4182]
[1721141585716,15.0,155.83,155.79,22.2787]
[1721141585907,15.0,155.83,155.8,1.10095342]
[1721141586108,15.0,155.81,155.8,1.10095342]
[1721141586538,15.0,155.83,155.8,1.10095342]
[1721141586914,15.0,155.83,155.8,7.51935342]
[1721141587119,15.0,155.83,155.8,1.10095342]
[1721141587414,15.0,155.83,155.81,6.4177]
[1721141587815,15.0,155.83,155.8,22.4642]
[1721141588042,15.0,155.83,155.81,6.418]
[1721141588341,15.0,155.85,155.82,6.4172]
[1721141588651,15.0,155.85,155.83,6.4171]
[1721141589016,15.0,155.85,155.83,1.10143536]
[1721141589215,15.0,155.85,155.82,22.4614]
[1721141590437,0.34,155.84,155.79,16.0466]
[1721141590648,15.0,155.82,155.79,22.4651]
[1721141590821,0.34,155.81,155.79,22.4651]
[1721141591023,0.34,155.81,155.8,6.4184]
[1721141591234,0.34,155.81,155.79,22.4653]
[1721141591423,0.34,155.81,155.79,16.0466]
[1721141591618,0.34,155.81,155.79,22.4653]
[1721141591834,0.34,155.81,155.79,16.0466]
[1721141592547,0.34,155.81,155.8,6.4184]
[1721141593520,15.0,155.86,155.83,6.4172]
[1721141593846,0.34,155.85,155.83,6.4172]
[1721141594212,15.0,155.84,155.81,6.4178]
[1721141594416,0.34,155.83,155.79,22.4649]
[1721141595116,15.0,155.82,155.79,22.4649]
[1721141595342,0.17,155.81,155.79,22.4649]
[1721141595537,0.34,155.81,155.8,6.4184]
[1721141595735,0.34,155.81,155.79,16.0464]
[1721141595938,0.34,155.81,155.8,6.4184]
[1721141598750,32.5328563,155.88,155.84,6.4164]
[1721141598751,15.0,155.86,155.84,6.4164]
[1721141598956,15.0,155.86,155.85,6.4164]
[1721141599126,15.0,155.86,155.84,6.4167]
[1721141599442,15.0,155.86,155.85,6.4164]
[1721141599823,15.8428563,155.88,155.85,6.4164]
[1721141600147,0.8428563,155.88,155.86,6.4159]
[1721141600349,0.8428563,155.88,155.85,16.0408]
[1721141600530,7.2580563,155.88,155.83,6.4171]
[1721141600729,0.8428563,155.88,155.82,16.0434]
[1721141600945,0.8428563,155.88,155.84,16.0418]
[1721141600946,0.17,155.87,155.84,16.0418]
[1721141601150,0.17,155.87,155.85,6.4161]
[1721141601351,0.17,155.87,155.84,22.4585]
[1721141601851,0.17,155.87,155.85,6.4163]
[1721141602224,0.34,155.87,155.85,6.4163]
[1721141602458,0.34,155.87,155.86,6.416]
[1721141602970,0.34,155.87,155.85,6.4163]
[1721141603247,0.34,155.87,155.84,16.0418]
[1721141603435,0.34,155.87,155.83,6.4171]
[1721141604232,15.0,155.85,155.83,6.4171]
[1721141604547,0.34,155.84,155.83,6.4171]
[1721141604756,0.34,155.84,155.82,6.4175]
[1721141605256,15.0,155.83,155.82,6.4175]
[1721141605560,0.17,155.83,155.82,6.4175]
[1721141605758,0.17,155.84,155.83,6.4172]
[1721141605941,0.34,155.84,155.83,6.4172]
[1721141606122,0.34,155.84,155.81,16.0444]
[1721141606546,15.0,155.82,155.81,16.0444]
[1721141606727,15.17,155.82,155.81,22.4624]
[1721141606934,0.34,155.82,155.81,22.4624]
[1721141607356,0.17,155.82,155.81,22.4624]
[1721141608659,15.17,155.82,155.73,16.403]
[1721141608859,15.0,155.79,155.7,6.4091]
[1721141609029,16.7913,155.81,155.7,6.4091]
[1721141609030,15.0,155.77,155.72,16.0538]
[1721141609230,0.17,155.76,155.75,6.4204]
[1721141609765,15.0,155.76,155.74,22.4729]
[1721141609929,0.17,155.77,155.74,22.4729]
[1721141610127,0.34,155.77,155.74,16.0521]
[1721141610935,0.34,155.77,155.76,6.4201]
[1721141611245,0.34,155.77,155.75,6.4204]
[1721141611760,0.34,155.77,155.7,38.52]
[1721141611960,15.0,155.76,155.74,6.4206]
[1721141612137,0.34,155.77,155.75,6.4204]
[1721141612651,0.17,155.77,155.76,6.4201]
[1721141612852,15.0,155.78,155.76,6.4201]
[1721141613054,15.0,155.78,155.75,22.4712]
[1721141614151,15.0,155.78,155.72,16.0538]
[1721141614355,15.0,155.76,155.72,16.0538]
[1721141614650,0.17,155.77,155.74,16.0518]
[1721141615159,15.0,155.78,155.74,16.0518]
[1721141615352,15.0,155.78,155.77,6.4197]
[1721141615656,21.418,155.81,155.76,6.42]
[1721141615960,15.0,155.81,155.77,6.4194]
[1721141616368,15.0,155.81,155.78,6.4192]
[1721141617041,15.0,155.83,155.8,6.4184]
[1721141617247,15.0,155.83,155.81,6.418]
[1721141617442,15.0,155.83,155.79,16.0469]
[1721141617771,15.0,155.85,155.8,7.7016681]
[1721141618166,15.0,155.85,155.81,6.418]
[1721141618339,15.0,155.85,155.82,1.28320337]
[1721141618542,0.34,155.84,155.83,1.28312102]
[1721141619046,15.0,155.81,155.79,16.0469]
[1721141619263,15.0,155.81,155.78,6.4191]
[1721141619468,6.4172,155.83,155.76,22.1609]
[1721141619469,0.17,155.82,155.81,6.418]
[1721141619673,15.0,155.83,155.81,6.418]
[1721141620042,15.0,155.83,155.8,22.4642]
[1721141620344,0.34,155.82,155.8,16.0459]
[1721141620647,0.34,155.82,155.8,22.4643]
[1721141620851,0.34,155.82,155.8,16.0459]
[1721141621072,0.34,155.82,155.8,6.4182]
[1721141622264,0.34,155.82,155.79,22.4653]
[1721141622762,0.34,155.82,155.8,6.4184]
[1721141623141,15.0,155.81,155.8,6.4184]
[1721141623342,15.17,155.81,155.79,22.4654]
[1721141623538,0.17,155.81,155.79,22.4654]
[1721141624166,0.17,155.82,155.8,6.4184]
[1721141624467,0.34,155.82,155.81,6.418]
[1721141624666,15.0,155.83,155.82,6.4176]
[1721141624957,15.0,155.85,155.83,6.4171]
[1721141625475,15.0,155.85,155.84,6.4168]
[1721141625673,15.0,155.86,155.84,6.4168]
[1721141626470,15.8428563,155.88,155.84,6.4168]
[1721141626958,15.8428563,155.88,155.83,16.0427]
[1721141626959,15.0,155.86,155.83,16.0427]
[1721141627263,21.4161,155.86,155.81,6.4179]
[1721141627463,15.0,155.83,155.81,6.4179]
[1721141627664,15.0,155.83,155.82,6.4176]
[1721141627861,15.17,155.83,155.82,6.4176]
[1721141628571,15.17,155.83,155.8,22.4638]
[1721141628976,15.17,155.83,155.81,6.4178]
[1721141629151,15.17,155.83,155.82,6.4176]
[1721141630470,0.17,155.83,155.81,6.4179]
[1721141630680,15.17,155.85,155.81,6.4179]
[1721141630851,0.17,155.84,155.82,6.4176]
[1721141631557,15.0,155.83,155.82,6.4176]
[1721141631770,15.17,155.83,155.82,6.4176]
[1721141631960,15.34,155.83,155.82,6.4176]
[1721141633872,0.34,155.83,155.81,6.418]
[1721141634074,0.17,155.84,155.82,6.4176]
[1721141634279,0.34,155.84,155.82,6.4176]
[1721141634469,15.0,155.83,155.82,6.4176]
[1721141634775,15.17,155.83,155.82,6.4176]
[1721141634954,15.34,155.83,155.82,6.4176]
[1721141635154,15.34,155.83,155.81,6.4179]
[1721141635549,15.0,155.85,155.82,6.4176]
[1721141635802,15.0,155.85,155.83,6.417]
[1721141635955,0.17,155.84,155.83,6.417]
[1721141636652,15.0,155.87,155.84,16.0411]
[1721141636859,0.8428563,155.88,155.84,16.0411]
[1721141637082,0.8428563,155.88,155.86,6.4156]
[1721141637384,15.0,155.86,155.85,6.4163]
[1721141638876,15.8428563,155.88,155.85,6.4163]
[1721141639075,15.8428563,155.88,155.84,16.0411]
[1721141639076,15.8428563,155.88,155.86,6.4159]
[1721141639462,0.8428563,155.88,155.87,6.4156]
[1721141639975,0.8428563,155.88,155.86,22.4554]
[1721141640167,0.8428563,155.88,155.87,6.4156]
[1721141640473,0.8428563,155.88,155.86,22.4555]
[1721141640678,0.8428563,155.88,155.87,6.4156]
[1721141641791,0.8428563,155.88,155.87,51.4156]
[1721141642275,0.8428563,155.88,155.87,6.4156]
[1721141643679,0.8428563,155.88,155.87,66.8825]
[1721141644088,0.8428563,155.88,155.87,86.8825]
[1721141647986,0.8428563,155.88,155.87,6.4156]
[1721141648169,1.0128563,155.88,155.87,6.4156]
[1721141648489,0.8428563,155.88,155.87,6.4156]
[1721141649661,1.0128563,155.88,155.87,6.4156]
[1721141650088,1.1828563,155.88,155.86,16.0396]
[1721141650294,1.1828563,155.88,155.87,6.4156]
[1721141650594,1.0128563,155.88,155.87,6.4156]
[1721141651086,0.8428563,155.88,155.87,6.4156]
[1721141651379,0.8428563,155.88,155.87,52.69638944]
[1721141651786,0.8428563,155.88,155.87,27.69638944]
[1721141652782,0.8428563,155.88,155.87,7.69638944]
[1721141652972,0.8428563,155.88,155.87,6.4156]
[1721141653173,1.1828563,155.88,155.87,6.4156]
[1721141655173,0.8428563,155.88,155.87,6.4156]
[1721141656787,0.8428563,155.88,155.87,71.4156]
[1721141661112,0.8428563,155.88,155.87,26.4156]
[1721141664085,0.8428563,155.88,155.87,71.4156]
[1721141670494,0.8428563,155.88,155.87,90.7356]
[1721141670702,0.8428563,155.88,155.87,97.2868]
[1721141670908,5.63e-05,155.88,155.87,112.8956]
[1721141673408,5.63e-05,155.88,155.87,93.5756]
[1721141673617,5.63e-05,155.88,155.87,48.5756]
[1721141675095,5.63e-05,155.88,155.87,112.8956]
[1721141675801,5.63e-05,155.88,155.87,93.5756]
[1721141676715,5.63e-05,155.88,155.87,87.0244]
[1721141677098,5.63e-05,155.88,155.87,71.4156]
[1721141677406,5.63e-05,155.88,155.87,26.4156]
[1721141678895,5.63e-05,155.88,155.87,71.4156]
[1721141686221,5.63e-05,155.88,155.87,87.2356]
[1721141690021,5.63e-05,155.88,155.87,86.5556]
[1721141690235,5.63e-05,155.88,155.87,106.5556]
[1721141690609,5.63e-05,155.88,155.87,87.2356]
[1721141691502,5.63e-05,155.88,155.87,71.4156]
[1721141693599,5.63e-05,155.88,155.87,87.2356]
[1721141694942,5.63e-05,155.88,155.87,6.4156]
[1721141695226,5.63e-05,155.88,155.87,42.2356]
[1721141696324,5.63e-05,155.88,155.87,88.19505886]
[1721141696503,5.63e-05,155.88,155.87,87.2356]
[1721141698605,5.63e-05,155.88,155.87,71.4156]
[1721141699207,5.63e-05,155.88,155.87,72.69830917]
[1721141699532,5.63e-05,155.88,155.87,23.51830917]
[1721141699726,15.0000563,155.88,155.87,23.51830917]
[1721141699948,5.63e-05,155.88,155.87,23.51830917]
[1721141700606,5.63e-05,155.88,155.87,22.2356]
[1721141700813,15.0,155.87,155.83,16.0427]
[1721141701047,15.0,155.87,155.86,6.416]
[1721141701245,5.63e-05,155.88,155.87,6.4156]
[1721141702036,5.63e-05,155.88,155.87,22.2356]
[1721141702233,5.63e-05,155.88,155.87,67.2356]
[1721141702612,5.63e-05,155.88,155.87,51.4156]
[1721141703333,5.63e-05,155.88,155.87,52.46498457]
[1721141703533,5.63e-05,155.88,155.87,68.28498457]
[1721141703940,5.63e-05,155.88,155.87,124.24978457]
[1721141704250,15.0,155.98,155.91,32.0678]
[1721141704553,15.0,155.98,155.97,6.4114]
[1721141705319,15.0,155.98,155.95,31.8502]
[1721141705640,15.0,155.96,155.92,16.0336]
[1721141705823,15.0,155.96,155.94,6.4123]
[1721141706142,15.0,155.96,155.94,22.2323]
[1721141706354,15.0,155.98,155.95,6.4119]
[1721141706727,15.0,155.98,155.97,6.4114]
[1721141707625,15.0,155.98,155.96,6.4117]
[1721141708430,15.0,155.96,155.94,22.4433]
[1721141708635,15.0,155.98,155.94,22.4433]
[1721141709030,15.0,155.98,155.95,6.4123]
[1721141709534,15.0,155.96,155.95,6.4123]
[1721141710060,15.0,155.98,155.96,6.4118]
[1721141710251,15.0,155.98,155.94,16.0308]
[1721141710630,15.0,155.98,155.97,6.4114]
[1721141711558,15.0,156.0,155.99,6.4106]
[1721141712849,15.0,156.0,155.99,51.4106]
[1721141713230,0.8428563,156.04,156.03,6.409]
[1721141714349,15.8428563,156.04,156.03,6.409]
[1721141714752,15.8428563,156.04,156.02,22.4324]
[1721141715074,15.8428563,156.04,156.03,6.409]
[1721141715272,0.8428563,156.04,156.03,6.409]
[1721141715452,15.8428563,156.04,156.03,6.409]
[1721141715970,0.8428563,156.04,156.03,6.409]
[1721141716275,0.8428563,156.04,156.03,51.409]
[1721141716947,0.8428563,156.04,156.03,71.409]
[1721141719579,0.8428563,156.04,156.03,90.729]
[1721141719967,5.63e-05,156.04,156.03,91.069]
[1721141722159,15.0,156.12,156.11,6.4057]
[1721141723253,15.0,156.14,156.12,6.4052]
[1721141724085,15.0,156.14,156.13,6.4049]
[1721141724242,16.0191,156.16,156.14,6.4044]
[1721141724447,15.0,156.17,156.16,6.4036]
[1721141725015,15.0,156.17,156.15,0.75249268]
[1721141725181,15.0,156.17,156.14,16.0104]
[1721141725481,0.8428563,156.19,156.18,6.4028]
[1721141725787,15.0,156.17,156.14,6.4044]
[1721141725947,15.0,156.17,156.15,6.404]
[1721141726490,15.0,156.17,156.13,16.0116]
[1721141726653,15.0,156.14,156.09,22.4215]
[1721141726850,15.0,156.14,156.1,6.406]
[1721141727049,15.0,156.14,156.12,16.0131]
[1721141727275,15.0,156.14,156.13,6.4049]
[1721141727472,15.0,156.14,156.12,16.0131]
[1721141727860,15.0,156.14,156.13,6.4049]
[1721141728164,15.0,156.14,156.07,47.9455]
[1721141728369,15.0,156.14,156.08,36.0167]
[1721141728582,15.0,156.12,156.09,6.4065]
[1721141728795,15.0,156.12,156.11,22.42]
[1721141729966,15.0,156.16,156.14,6.4041]
[1721141730379,15.0,156.16,156.15,6.404]
[1721141730679,15.0,156.16,156.14,16.0112]
[1721141730882,15.0,156.14,156.09,6.4065]
[1721141731073,15.0,156.12,156.09,6.4065]
[1721141731384,15.0,156.12,156.1,6.4061]
[1721141731788,15.0,156.12,156.11,22.42]
[1721141732690,15.0,156.12,156.09,6.4062]
[1721141732874,15.0,156.12,156.09,6.4064]
[1721141733194,15.0,156.12,156.11,22.42]
[1721141733698,15.0,156.12,156.08,16.017]
[1721141734017,15.0,156.12,156.09,6.4064]
[1721141734298,15.0,156.1,156.08,16.017]
[1721141734665,15.0,156.1,156.08,22.4238]
[1721141734872,15.0,156.1,156.06,6.4076]
[1721141735202,0.17,156.11,156.06,6.4076]
[1721141735203,15.0,156.08,156.06,6.4076]
[1721141736196,15.0,156.06,156.04,16.0206]
[1721141736915,15.0,156.06,156.05,6.4082]
[1721141739012,15.0,156.1,156.07,16.0184]
[1721141739523,15.0,156.08,156.07,22.4257]
[1721141740380,15.0,156.08,156.07,16.0184]
[1721141740600,15.0,156.08,156.04,16.0211]
[1721141740813,15.0,156.06,156.05,6.4081]
[1721141741385,15.0,156.06,156.04,16.0211]
[1721141741895,15.0,156.06,156.02,6.4093]
[1721141741896,0.17,156.05,156.02,6.4093]
[1721141742109,15.0,156.04,156.02,6.4093]
[1721141742305,15.0,156.02,156.01,22.4338]
[1721141742619,15.0,156.02,155.97,32.0557]
[1721141742620,15.0,156.02,155.99,6.4106]
[1721141742816,15.0,156.0,155.99,6.4106]
[1721141743116,15.0,156.0,155.96,6.4118]
[1721141743289,15.0,156.0,155.97,6.4114]
[1721141743486,15.0,156.0,155.98,6.4109]
[1721141743691,15.0,156.0,155.98,6.411]
[1721141743892,15.0,156.0,155.99,6.4106]
[1721141744209,15.17,156.0,155.99,6.4106]
[1721141744393,15.0,156.0,155.99,6.4106]
[1721141744597,15.0,156.0,155.97,16.0282]
[1721141745017,15.0,155.98,155.97,22.4396]
[1721141745380,15.0,156.0,155.99,6.4106]
[1721141745792,15.0,156.03,156.01,6.4097]
[1721141745997,15.0,156.01,156.0,22.4356]
[1721141746310,15.0,156.01,156.0,16.0255]
[1721141746490,15.0,156.01,156.0,22.4357]
[1721141747092,15.0,156.03,156.02,6.4094]
[1721141748708,15.0,156.03,156.02,51.4094]
[1721141749231,15.0,156.05,156.04,22.4301]
[1721141749406,15.0,156.05,156.04,67.4301]
[1721141749725,15.0,156.08,156.07,6.4073]
[1721141750037,15.0,156.08,156.06,22.4264]
[1721141750196,15.0,156.08,156.07,6.4073]
[1721141751005,15.0,156.1,156.08,6.4067]
[1721141751326,15.0,156.1,156.07,7.68849005]
[1721141751527,15.0,156.1,156.08,1.28121898]
[1721141752122,15.0,156.1,156.07,6.4073]
[1721141752426,15.0,156.08,156.06,16.0187]
[1721141752996,15.0,156.06,156.04,6.4085]
[1721141753214,15.0,156.06,156.03,22.431]
[1721141753504,15.0,156.06,156.03,6.4088]
[1721141753699,15.0,156.06,156.05,6.4082]
[1721141753918,15.0,156.06,156.04,6.4085]
[1721141754121,12.7051,156.09,156.03,6.4086]
[1721141754122,15.0,156.04,156.03,6.4086]
[1721141754422,15.0,156.04,156.02,22.4325]
[1721141754625,15.0,156.06,156.03,6.409]
[1721141755004,15.0,156.04,156.03,6.409]
[1721141755809,15.0,156.04,156.02,22.4324]
[1721141756228,15.0,156.04,155.97,47.1834]
[1721141756229,15.0,156.04,156.01,6.4097]
[1721141756407,0.34,156.07,156.01,6.4097]
[1721141756408,15.0,156.02,156.01,6.4097]
[1721141756606,15.0,156.04,156.01,6.4097]
[1721141756823,15.0,156.02,156.01,6.4094]
[1721141757006,15.17,156.02,155.99,16.0263]
[1721141757202,0.17,156.01,155.99,22.4369]
[1721141757409,15.0,156.0,155.99,22.4369]
[1721141757713,0.17,156.01,155.99,22.4369]
[1721141758122,15.0,156.0,155.99,16.0263]
[1721141759307,15.0,156.0,155.99,22.4369]
[1721141759906,15.0,156.02,155.99,16.0263]
[1721141760112,15.0,156.02,156.01,6.4098]
[1721141760320,15.0,156.04,156.01,16.024]
[1721141760520,15.0,156.04,155.94,51.3228]
[1721141760521,15.0,156.06,156.05,6.4082]
[1721141760715,15.0,156.06,156.04,6.4085]
[1721141760918,15.0,156.06,156.05,6.4082]
[1721141761115,15.0,156.06,156.04,6.4085]
[1721141761321,15.0,156.06,156.05,6.4082]
[1721141761728,15.0,156.06,156.03,16.0215]
[1721141761934,15.0,156.06,156.05,6.4082]
[1721141762435,15.0,156.1,156.08,6.4067]
[1721141762841,15.0,156.1,156.09,6.4065]
[1721141763041,15.0,156.1,156.08,6.4068]
[1721141763335,15.0,156.1,156.07,22.4251]
[1721141763512,15.0,156.08,156.07,22.4251]
[1721141764133,15.0,156.08,156.07,16.018]
[1721141764629,15.0,156.06,156.05,6.4081]
[1721141765146,6.4058,156.11,156.04,16.0214]
[1721141765147,15.0,156.08,156.06,6.4077]
[1721141765825,15.0,156.08,156.07,6.4073]
[1721141766028,15.0,156.11,156.08,6.4066]
[1721141766327,15.0,156.11,156.09,6.4065]
[1721141766530,15.0,156.11,156.09,6.4064]
[1721141766837,15.0,156.11,156.09,16.0159]
[1721141767028,15.0,156.11,156.1,6.4061]
[1721141767721,15.0,156.13,156.12,6.4053]
[1721141768439,15.0,156.13,156.12,7.68391569]
[1721141768735,15.0,156.13,156.12,51.4053]
[1721141768929,15.0,156.17,156.15,6.4037]
[1721141769422,15.0,156.17,156.16,6.4036]
[1721141769619,15.0,156.17,156.14,16.0112]
[1721141769821,15.0,156.17,156.15,6.4037]
[1721141770018,15.0,156.17,156.14,16.0112]
[1721141770218,15.0,156.17,156.15,45.0]
[1721141770432,15.0,156.17,156.15,51.404]
[1721141770614,15.0,156.17,156.14,16.0112]
[1721141770819,15.0,156.15,156.14,22.4157]
[1721141771139,15.0,156.17,156.14,61.0112]
[1721141771340,15.0,156.17,156.14,67.4156]
[1721141771554,15.0,156.15,156.14,67.4156]
[1721141772047,15.0,156.15,156.14,16.0112]